[Event "21st Alekhine FIDE 2017"]
[Site "Voronezh"]
[Date "2017.06.16"]
[Round "5"]
[White "Perch, Sofya"]
[Black "Napalkov, Vladimir"]
[Result "1/2-1/2"]
[ECO "E34"]
[WhiteElo "1874"]
[BlackElo "2031"]
[Annotator "NA"]
[PlyCount "117"]
[EventDate "2017.??.??"]
[EventType "swiss"]
[EventCountry "RUS"]
[SourceTitle "playchess.com"]
[Source "ChessBase"]
[SourceQuality "1"]
[TimeControl "40/5400+30:1800+30"]

{[%evp 8,117,3,2,0,-4,32767,0,15,-10,0,-23,0,0,-2,-33,8,-27,-9,-14,-8,-47,-48,-52,-20,-67,-58,-70,-41,-40,-19,-60,-58,-60,-37,-54,-40,-41,-24,-47,-20,-24,-25,-15,-29,-31,-16,-70,-47,-101,-87,-109,-85,-206,-146,-213,-243,-223,-219,-381,-425,-427,-403,-472,-533,-469,-522,-509,-435,-454,-395,-441,-476,-436,-427,-472,-419,-493,-433,-460,-417,-448,-538,-770,32767,32767,32767,32767,32767,-400,-617,-453,-452,-480,-447,-410,-447,32767,32767,-458,-223,-294,32767,-223,0,13,44,27,62,32767,55,73]} 1. d4 {[%emt 0:00:00]} Nf6 {[%emt 0:00:10]} 2. c4 {[%emt 0:00:00]} e6 {[%emt 0:00:10]} 3. Nc3 {[%emt 0:00:00]} Bb4 {[%emt 0:00:16]} 4. Qc2 {[%emt 0:00:00]} d5 {[%emt 0:00:25]} 5. e3 {[%emt 0:01:14]} O-O {[%emt 0:01:33]} 6. Nf3 {[%emt 0:00:48] LiveBook: 61 Games} c5 {[%emt 0:01:12]} 7. a3 {[%emt 0:02:18]} Bxc3+ {[%emt 0:18:52]} 8. bxc3 {[%emt 0:00:10]} b6 {[%emt 0:01:13]} 9. Bd3 {[%emt 0:04:23]} Bb7 {[%emt 0:00:13]} 10. cxd5 {[%emt 0:00:16]} exd5 {[%emt 0:01:44]} 11. O-O {[%emt 0:03:11]} Nbd7 {[%emt 0:01:08]} 12. Bd2 {[%emt 0:05:47] E52: Nimzo-Indian: Rubinstein: 4...0-0 5 Nf3 d5 6 Bd3 b6} (12. Nd2 Re8 13. Rd1 Rc8 14. Qb1 cxd4 15. cxd4 Ne4 16. Bb2 Qh4 17. Nxe4 dxe4 18. Bb5 Nf6 19. h3 Red8 {½-½ (37) Illescas Cordoba,M (2618)-Gong,Q (2328) Tromsoe 2014}) 12... c4 {[%emt 0:04:48]} 13. Bf5 {[%emt 0:03:00]} Re8 {[%emt 0:00:27]} 14. Bxd7 $146 {[%emt 0:00:42]} ({Predecessor:} 14. a4 Bc6 15. Rfb1 g6 16. Bh3 Ne4 17. Be1 Qf6 18. Rb2 h5 {0-1 (26) Suijdendorp,F (1905)-Travnicek,P (2175) Hergiswil 2001}) 14... Nxd7 {[%emt 0:00:24]} 15. Qf5 {[%emt 0:01:42]} g6 {[%emt 0:03:55]} 16. Qg5 {[%emt 0:02:21]} Nf6 {[%emt 0:03:30]} 17. Rfd1 {[%emt 0:06:37]} Ne4 {[%emt 0:08:46]} 18. Qxd8 {[%emt 0:00:23]} Rexd8 {[%emt 0:01:05]} 19. Rdb1 {[%emt 0:02:03]} Bc6 {[%emt 0:04:04]} 20. a4 {[%emt 0:00:19]} Rdb8 {[%emt 0:00:22]} 21. Be1 {[%emt 0:00:32]} f6 {[%emt 0:00:42]} 22. h3 {[%emt 0:01:46]} Rb7 {[%emt 0:01:25]} 23. Nh2 {[%emt 0:01:54]} Re7 {[%emt 0:02:35]} 24. Nf1 {[%emt 0:05:21]} Bd7 {[%emt 0:05:04]} 25. f3 {[%emt 0:04:19]} Nd6 {[%emt 0:00:22]} 26. Bd2 {[%emt 0:00:11]} Nb7 {[%emt 0:01:55]} 27. Kf2 {[%emt 0:08:50]} Na5 {[%emt 0:01:22]} 28. Rb2 {[%emt 0:00:38]} (28. Re1 $15) 28... Nb3 {[%emt 0:00:20]} 29. Raa2 {[%emt 0:00:07]} Bf5 {[%emt 0:14:46]} 30. Be1 {[%emt 0:06:20]} (30. e4 $17 dxe4 31. Ne3) 30... Bd3 {[%emt 0:00:18]} 31. Nd2 {[%emt 0:00:59]} Rae8 {[%emt 0:03:15]} 32. e4 {[%emt 0:03:06]} dxe4 {[%emt 0:00:45]} 33. Nxe4 {[%emt 0:00:27]} (33. fxe4 {only move.} Kg7 34. a5) 33... Bxe4 {[%emt 0:00:24]} 34. fxe4 {[%emt 0:00:04]} Nc1 {[%emt 0:00:29]} 35. Bd2 {[%emt 0:01:41]} Nxa2 {[%emt 0:00:25]} 36. Rxa2 {[%emt 0:00:05]} Rxe4 {[%emt 0:00:12]} 37. Bc1 {[%emt 0:00:43]} Rb8 {[%emt 0:01:09]} 38. Rb2 {[%emt 0:00:10]} a6 {[%emt 0:00:46]} 39. Kf3 {[%emt 0:00:10]} Re1 {[%emt 0:02:52]} 40. Bf4 {[%emt 0:00:37]} Rb7 {[%emt 0:30:09]} 41. d5 {[%emt 0:30:27]} Kf7 {[%emt 0:00:46]} 42. d6 {[%emt 0:00:30]} Ke6 {[%emt 0:00:27]} 43. Kf2 {[%emt 0:00:51]} Re4 {[%emt 0:00:23]} 44. Bh2 {[%emt 0:00:08]} b5 {[%emt 0:00:21]} 45. axb5 {[%emt 0:00:12]} (45. Rb4 $142) 45... axb5 {[%emt 0:00:33]} 46. Kf3 {[%emt 0:00:13]} f5 {[%emt 0:00:20]} 47. g4 {[%emt 0:00:12]} Kd7 {[%emt 0:00:33]} 48. gxf5 {[%emt 0:00:38]} gxf5 {[%emt 0:00:04]} 49. Rg2 {[%emt 0:00:10]} Re8 {[%emt 0:04:45]} 50. Rg5 {[%emt 0:01:21]} Rf8 {[%emt 0:00:38]} 51. Rg1 {[%emt 0:00:19]} b4 {[%emt 0:00:39]} 52. cxb4 {[%emt 0:00:21]} Rxb4 {[%emt 0:00:07]} 53. Rg7+ {[%emt 0:00:39]} Ke6 {[%emt 0:01:09]} (53... Kc6 $142 54. Rc7+ Kd5) 54. Re7+ {[%emt 0:00:25]} Kd5 {[%emt 0:05:49]} 55. d7 {[%emt 0:00:19]} Rd8 $2 {[%emt 0:02:22]} (55... Rb3+ $19 56. Ke2 Rb2+ 57. Ke3 Kc6) 56. Bc7 {[%emt 0:00:09]} Rxd7 {[%emt 0:00:45]} ({Don't go for} 56... Rbb8 $2 57. Bxb8 Kc6 58. Kf4 $18) 57. Rxd7+ {[%emt 0:00:11]} Kc6 {[%emt 0:00:20]} 58. Rg7 {[%emt 0:02:03]} Rb3+ {[%emt 0:00:53] [#]} 59. Kg2 $16 {[%emt 0:01:01]} 1/2-1/2

[Event "21st Alekhine FIDE 2017"]
[Site "Voronezh"]
[Date "2017.06.17"]
[Round "6"]
[White "Provkin, Vladimir"]
[Black "Filippov, Ivan"]
[Result "1-0"]
[ECO "D43"]
[WhiteElo "2163"]
[BlackElo "2041"]
[Annotator "NA"]
[PlyCount "92"]
[EventDate "2017.??.??"]
[EventType "swiss"]
[EventCountry "RUS"]
[SourceTitle "playchess.com"]
[Source "ChessBase"]
[SourceQuality "1"]
[TimeControl "40/5400+30:1800+30"]

1. d4 {[%emt 0:10:18]} e6 {[%emt 0:00:25]} 2. Nf3 {[%emt 0:00:06]} d5 {[%emt 0:01:10]} 3. c4 {[%emt 0:00:09]} Nf6 {[%emt 0:01:12]} 4. Nc3 {[%emt 0:00:10]} c6 {[%emt 0:01:12]} 5. Bg5 {[%emt 0:00:22]} Nbd7 {[%emt 0:00:18]} 6. cxd5 {[%emt 0:00:27]} exd5 {[%emt 0:00:08]} 7. e3 {[%emt 0:00:50]} h6 {[%emt 0:01:24]} 8. Bh4 {[%emt 0:00:24]} Qa5 {[%emt 0:01:08]} 9. Bd3 {[%emt 0:03:11]} Bb4 {[%emt 0:04:21]} 10. Qc2 {[%emt 0:01:19]} O-O {[%emt 0:00:36]} 11. O-O {[%emt 0:00:21]} Re8 {[%emt 0:00:08]} 12. a3 {[%emt 0:04:16] D52: Queen's Gambit Declined: Cambridge Springs Variation} (12. Nd2 Bxc3 13. bxc3 Qa3 14. Nb1 Qd6 15. a4 Nf8 16. Nd2 b6 17. Rfe1 Bb7 18. f3 c5 19. Qb2 Bc6 20. Bg3 Qd8 21. Bf2 {1-0 (91) Nguyen Huynh Minh,H (2474)-Juswanto,D (2402) Jakarta 2014}) 12... Bxc3 {[%emt 0:02:32]} 13. bxc3 {[%emt 0:00:06] LiveBook: 4 Games} Ne4 {[%emt 0:00:09]} 14. c4 {[%emt 0:02:25]} Ndf6 {[%emt 0:07:04]} 15. Ne5 {[%emt 0:03:03]} (15. Bxf6 $5 Nxf6 16. c5 $14) 15... Qd2 {[%emt 0:06:49]} 16. cxd5 {[%emt 0:06:46]} cxd5 $146 {[%emt 0:03:55]} ({Predecessor:} 16... Qxc2 $1 $14 17. Bxc2 cxd5 18. Ba4 Re6 19. Rfc1 Ra6 20. Bg3 Be6 21. Rc7 Rb6 22. Rac1 Ne8 23. R7c2 Bf5 {½-½ (23) Srvatka,I (2191)-Hazir,S (2167) Slovakia 2006}) 17. Rfc1 {[%emt 0:11:57]} ({White should play} 17. Qc7 $16 Be6 18. Bxf6 (18. Qxb7 Nc3 $16)) 17... Qxc2 {[%emt 0:00:52]} 18. Rxc2 {[%emt 0:00:05]} g5 {[%emt 0:00:11]} 19. f3 {[%emt 0:07:26]} Nd6 {[%emt 0:12:40]} 20. Be1 {[%emt 0:05:02]} Bf5 {[%emt 0:08:11]} 21. Bxf5 {[%emt 0:03:17]} Nxf5 {[%emt 0:00:07]} 22. Rc7 {[%emt 0:01:45]} Re7 {[%emt 0:04:19]} 23. Rac1 {[%emt 0:00:29]} Ne8 {[%emt 0:01:54]} 24. Rc8 {[%emt 0:11:08]} Rxc8 {[%emt 0:00:16]} 25. Rxc8 {[%emt 0:00:03]} f6 {[%emt 0:07:22]} 26. Bb4 {[%emt 0:11:20]} Re6 {[%emt 0:00:43]} 27. Nd7 {[%emt 0:00:19]} Kf7 {[%emt 0:00:53]} 28. e4 {[%emt 0:06:25]} Ne7 {[%emt 0:15:17] [#]} 29. Rb8 $1 {[%emt 0:02:26]} Nc6 {[%emt 0:00:15]} 30. exd5 $18 {[%emt 0:03:47]} Nxb8 {[%emt 0:03:40]} 31. dxe6+ {[%emt 0:00:05]} Kxe6 {[%emt 0:00:08]} 32. Nxb8 {[%emt 0:00:06]} Kd5 {[%emt 0:00:33]} 33. Bc5 {[%emt 0:01:22]} b6 {[%emt 0:00:31]} 34. Bf8 {[%emt 0:00:10]} a5 {[%emt 0:01:44]} 35. Nd7 {[%emt 0:02:06]} Kc6 {[%emt 0:00:20]} 36. Nxb6 {[%emt 0:01:00]} Kxb6 {[%emt 0:00:09]} 37. Bxh6 {[%emt 0:00:06]} Kb5 {[%emt 0:01:17]} 38. Bf8 {[%emt 0:00:17]} Kc4 {[%emt 0:00:12]} 39. Bc5 {[%emt 0:00:18]} Nc7 {[%emt 0:02:36]} 40. g3 {[%emt 0:00:08]} Ne6 {[%emt 0:31:22]} 41. h4 {[%emt 0:30:11]} gxh4 42. gxh4 {[%emt 0:00:10]} Nf4 {[%emt 0:01:56]} 43. Kf2 {[%emt 0:00:32]} Nh5 {[%emt 0:02:05]} 44. Ke3 {[%emt 0:00:09]} Kd5 {[%emt 0:00:12]} 45. Kd3 {[%emt 0:00:26]} a4 {[%emt 0:00:39]} 46. Kc3 {[%emt 0:00:19]} Ke6 {[%emt 0:01:03]} 1-0

[Event "21st Alekhine FIDE 2017"]
[Site "Voronezh"]
[Date "2017.06.17"]
[Round "6"]
[White "Palin, Denis"]
[Black "Garafutdinov, Ainur"]
[Result "1/2-1/2"]
[ECO "C47"]
[WhiteElo "2158"]
[BlackElo "1998"]
[Annotator "NA"]
[PlyCount "88"]
[EventDate "2017.??.??"]
[EventType "swiss"]
[EventCountry "RUS"]
[SourceTitle "playchess.com"]
[Source "ChessBase"]
[SourceQuality "1"]
[TimeControl "40/5400+30:1800+30"]

1. e4 {[%emt 0:00:32]} e5 {[%emt 0:02:23]} 2. Nf3 {[%emt 0:00:05]} Nc6 {[%emt 0:00:03]} 3. Nc3 {[%emt 0:00:05]} Nf6 {[%emt 0:00:04]} 4. a3 {[%emt 0:00:04]} d5 {[%emt 0:00:54]} 5. Bb5 {[%emt 0:00:05] C47: Scotch Four Knights and Four Knights with 4 g3} (5. exd5 Nxd5 6. Bb5 Nxc3 7. bxc3 Bd6 8. d4 exd4 9. Qe2+ Qe7 10. Qxe7+ Kxe7 11. cxd4 a6 12. Bxc6 bxc6 13. c4 Re8 {0-1 (45) Motylev,A (2686)-Karjakin,S (2777) Moscow 2014}) 5... d4 {[%emt 0:04:59]} 6. Ne2 {[%emt 0:01:37]} Bd6 {[%emt 0:02:58]} 7. Ng3 {[%emt 0:02:33]} Be6 $146 {[%emt 0:15:55]} ({Predecessor:} 7... a6 8. Bxc6+ bxc6 9. h3 Rb8 10. d3 O-O 11. c4 c5 12. b3 Ne8 {1-0 (39) Frank,H (2303)-Kuhl,E (2358) GER email 2008}) 8. d3 {[%emt 0:03:11]} h6 {[%emt 0:02:23]} 9. Qe2 {[%emt 0:01:44]} Nd7 {[%emt 0:07:05]} 10. Nf5 {[%emt 0:04:15]} Qf6 {[%emt 0:17:44]} 11. Bxc6 {[%emt 0:07:44]} bxc6 {[%emt 0:00:00]} 12. g4 {[%emt 0:00:13]} Bf8 {[%emt 0:10:07]} 13. Rg1 {[%emt 0:02:24]} Qd8 {[%emt 0:06:14]} 14. g5 {[%emt 0:06:12]} h5 {[%emt 0:00:17]} 15. g6 {[%emt 0:01:03]} f6 {[%emt 0:00:03]} 16. N3h4 {[%emt 0:01:34]} Nc5 {[%emt 0:04:58]} 17. f4 {[%emt 0:05:47]} exf4 {[%emt 0:01:46]} 18. Bxf4 {[%emt 0:00:07]} Qd7 {[%emt 0:00:15]} 19. Nf3 {[%emt 0:05:40]} Bxf5 {[%emt 0:01:07]} 20. exf5+ {[%emt 0:00:01]} Be7 {[%emt 0:00:22]} 21. Nh4 {[%emt 0:01:33]} O-O-O {[%emt 0:00:47]} 22. O-O-O {[%emt 0:18:14]} Bd6 {[%emt 0:01:54]} 23. Qf2 {[%emt 0:05:45]} Bxf4+ 24. Qxf4 {[%emt 0:00:01]} Qd5 {[%emt 0:01:09]} 25. Kb1 {[%emt 0:02:02]} Na4 {[%emt 0:05:10]} 26. Qe4 {[%emt 0:04:31]} Rhe8 {[%emt 0:02:30]} 27. Qxd5 {[%emt 0:00:14]} Rxd5 {[%emt 0:00:01]} 28. Rde1 {[%emt 0:00:35]} Rde5 {[%emt 0:00:01]} (28... Rxe1+ $11 {remains equal.} 29. Rxe1 Kd7) 29. Nf3 {[%emt 0:00:49]} Rxe1+ {[%emt 0:00:05]} 30. Rxe1 {[%emt 0:00:03]} Rxe1+ {[%emt 0:00:06]} 31. Nxe1 {[%emt 0:00:03]} Nb6 {[%emt 0:01:39]} 32. Nf3 {[%emt 0:00:48]} Nd5 {[%emt 0:01:08]} 33. Nxd4 {[%emt 0:00:32]} Ne7 {[%emt 0:00:05]} 34. b4 {[%emt 0:00:06]} Kd7 {[%emt 0:00:21]} 35. c4 {[%emt 0:03:15]} Kd6 {[%emt 0:00:49]} 36. Kb2 {[%emt 0:00:07]} Ke5 {[%emt 0:00:48]} 37. Kc3 {[%emt 0:00:07]} h4 $16 {[%emt 0:00:56]} 38. Nf3+ {[%emt 0:13:09]} Kxf5 {[%emt 0:00:12]} 39. Nxh4+ {[%emt 0:00:01]} Kg4 {[%emt 0:00:20]} 40. Ng2 {[%emt 0:00:04]} Nxg6 {[%emt 0:30:54]} 41. Ne3+ {[%emt 0:31:36]} Kf4 {[%emt 0:00:10]} 42. Kd2 {[%emt 0:00:25]} Nh4 {[%emt 0:01:42]} 43. Ke2 {[%emt 0:00:31]} g5 {[%emt 0:03:51]} 44. b5 {[%emt 0:00:24]} cxb5 {[%emt 0:00:24]} 1/2-1/2

[Event "21st Alekhine FIDE 2017"]
[Site "Voronezh"]
[Date "2017.06.17"]
[Round "6"]
[White "Tatarintsev, Egor"]
[Black "Rozmanov, Aleksandr"]
[Result "1/2-1/2"]
[ECO "C68"]
[WhiteElo "2085"]
[BlackElo "1928"]
[Annotator "NA RC"]
[PlyCount "67"]
[EventDate "2017.??.??"]
[EventType "swiss"]
[EventCountry "RUS"]
[SourceTitle "playchess.com"]
[Source "ChessBase"]
[SourceQuality "1"]
[TimeControl "40/5400+30:1800+30"]

{[%evp 17,65,0,57,44,65,33,50,45,83,32767,0,-10,4,-16,-24,-65,-73,-73,-77,-79,-27,-25,-21,-48,-17,-19,-16,-6,32767,-21,-23,-27,-18,-20,-12,-20,-14,-23,-19,32767,32767,-22,-15,-23,-9,32767,0,-26,0,-12]} 1. e4 {[%emt 0:00:00]} e5 {[%emt 0:04:21]} 2. Nf3 {[%emt 0:00:00]} Nc6 {[%emt 0:00:13]} 3. Bb5 {[%emt 0:00:05]} a6 {[%emt 0:00:30]} 4. Bxc6 {[%emt 0:00:14]} dxc6 {[%emt 0:00:08]} 5. O-O {[%emt 0:00:17]} f6 {[%emt 0:00:07]} 6. d4 {[%emt 0:00:33]} exd4 {[%emt 0:00:04]} 7. Nxd4 {[%emt 0:00:18]} c5 {[%emt 0:00:03]} 8. Ne2 {[%emt 0:02:11]} Be6 {[%emt 0:00:38] C69: Ruy Lopez: Exchange Variation with 5 0-0 f6} (8... Qxd1 9. Rxd1 Bd7 10. Nbc3 O-O-O 11. Be3 Re8 12. Rd2 Bc6 13. Rad1 Bd6 14. Bf4 Bxf4 15. Nxf4 Nh6 16. Nh5 Rhg8 17. f3 f5 18. Ng3 fxe4 19. Ncxe4 Re5 {1-0 (47) Socko,B (2617)-Nyback,T (2608) Germany 2015}) 9. a4 $146 {[%emt 0:06:25]} ({Predecessor:} 9. Bf4 Bd6 10. Nbc3 Ne7 11. Qc1 Ng6 12. Bxd6 Qxd6 13. f4 Ne7 14. Rd1 Qc6 15. f5 Bf7 16. Nf4 {1-0 (44) Cornette,M (2494)-Lev,R (2414) Kemer 2007}) 9... b6 {[%emt 0:01:12]} (9... Ne7 $11) 10. Nbc3 {[%emt 0:01:16]} Qxd1 {[%emt 0:02:21]} 11. Rxd1 {[%emt 0:00:21]} Bd6 {[%emt 0:00:06]} 12. Bf4 {[%emt 0:06:49]} O-O-O {[%emt 0:03:10]} 13. Nd5 {[%emt 0:09:18]} Bxd5 {[%emt 0:00:34]} 14. exd5 {[%emt 0:00:52]} Ne7 {[%emt 0:01:55]} 15. Bxd6 {[%emt 0:01:40]} Rxd6 {[%emt 0:00:02]} 16. a5 {[%emt 0:08:50]} Rxd5 {[%emt 0:02:24]} 17. Rxd5 {[%emt 0:02:07]} Nxd5 {[%emt 0:00:01]} 18. axb6 {[%emt 0:00:18]} cxb6 {[%emt 0:00:12]} 19. Rxa6 {[%emt 0:00:38]} Kb7 {[%emt 0:00:02]} 20. Ra3 {[%emt 0:02:11]} Re8 {[%emt 0:00:16]} 21. Kf1 {[%emt 0:00:17]} Re7 {[%emt 0:01:16]} 22. Rd3 {[%emt 0:05:32]} Kc6 {[%emt 0:01:35]} 23. c3 {[%emt 0:21:25]} b5 {[%emt 0:06:18]} 24. Rd2 {[%emt 0:01:43]} g6 {[%emt 0:05:22]} 25. g3 {[%emt 0:03:17]} Ra7 {[%emt 0:01:35]} 26. Ke1 {[%emt 0:05:32]} Ra1+ {[%emt 0:01:11]} 27. Rd1 {[%emt 0:00:04]} Ra2 {[%emt 0:02:50]} 28. c4 {[%emt 0:04:57]} Nc7 {[%emt 0:00:26]} 29. cxb5+ {[%emt 0:01:02]} Nxb5 {[%emt 0:00:41]} 30. Rd2 {[%emt 0:00:08]} Ra1+ {[%emt 0:05:06]} 31. Rd1 {[%emt 0:00:18]} Ra2 {[%emt 0:09:59]} 32. Rd2 {[%emt 0:00:21]} Ra1+ {[%emt 0:00:12]} 33. Rd1 $11 {[%emt 0:00:06]} Ra2 {[%emt 0:04:58]} 34. Ng1 1/2-1/2

[Event "21st Alekhine FIDE 2017"]
[Site "Voronezh"]
[Date "2017.06.17"]
[Round "6"]
[White "Kozlov, Sergej A"]
[Black "Palkovich, Denis"]
[Result "0-1"]
[ECO "B01"]
[WhiteElo "2072"]
[BlackElo "2147"]
[Annotator "NA"]
[PlyCount "114"]
[EventDate "2017.??.??"]
[EventType "swiss"]
[EventCountry "RUS"]
[SourceTitle "playchess.com"]
[Source "ChessBase"]
[SourceQuality "1"]
[TimeControl "40/5400+30:1800+30"]

{[%evp 8,94,63,49,69,51,52,-25,11,-12,0,-17,-15,-21,-10,-26,-20,-40,-36,-42,32767,-60,-55,-52,-56,-60,-52,-56,-60,-53,-23,-58,-52,-54,-52,-48,-48,-68,-44,-58,-30,-59,-52,-68,32767,-64,-73,-93,32767,32767,-83,-91,-92,-96,32767,32767,-39,-40,32767,32767,32767,32767,-75,-85,-89,-96,32767,32767,-75,32767,32767,32767,32767,32767,32767,32767,32767,32767,32767,32767,32767,32767,32767,-61,-118,32767,32767,-153,-70]} 1. e4 {[%emt 0:00:00]} d5 {[%emt 0:12:51]} 2. exd5 {[%emt 0:01:21]} Qxd5 {[%emt 0:00:07]} 3. Nc3 {[%emt 0:00:08]} Qa5 {[%emt 0:00:05]} 4. d4 {[%emt 0:00:41]} Nf6 {[%emt 0:00:08]} 5. Nf3 {[%emt 0:00:17]} Nc6 {[%emt 0:00:07]} 6. Bb5 {[%emt 0:02:54]} Nd5 {[%emt 0:00:09]} 7. Bd2 {[%emt 0:04:59]} (7. Rb1 $14) 7... Nxc3 {[%emt 0:03:37] LiveBook: 16 Games B01: Scandinavian Defence} 8. Bxc6+ $1 {[%emt 0:00:05]} bxc6 {[%emt 0:00:03]} 9. Bxc3 {[%emt 0:00:07]} Qd5 $1 {[%emt 0:00:06]} 10. O-O {[%emt 0:06:19]} (10. h3 Ba6 11. Qd2 e6 12. Kd1 Rd8 13. Kc1 c5 14. Rd1 Be7 15. b3 cxd4 16. Bxd4 {½-½ (53) Govedarica,R (2395)-Saric,S (2444) Kragujevac 2010}) 10... Bg4 $1 {[%emt 0:00:08]} 11. Re1 {[%emt 0:01:24]} Bxf3 $1 {[%emt 0:00:21]} 12. Qxf3 {[%emt 0:06:41]} Qxf3 {[%emt 0:01:45]} 13. gxf3 {[%emt 0:00:04]} e6 {[%emt 0:00:13]} 14. Re5 {[%emt 0:05:13]} O-O-O {[%emt 0:00:37]} 15. Rd1 $146 {[%emt 0:23:37]} ({Predecessor:} 15. Ra5) 15... Be7 {[%emt 0:00:46]} 16. Rd3 {[%emt 0:00:55]} Rd5 {[%emt 0:01:17]} 17. Bd2 {[%emt 0:04:23]} Rhd8 {[%emt 0:01:42]} 18. Be3 {[%emt 0:08:10]} Bd6 {[%emt 0:03:35]} 19. Rxd5 {[%emt 0:03:00]} cxd5 {[%emt 0:00:14]} 20. Rb3 {[%emt 0:00:47]} Kd7 {[%emt 0:00:53]} 21. Bd2 {[%emt 0:00:30]} a6 {[%emt 0:04:26]} 22. h3 {[%emt 0:01:57]} Re8 {[%emt 0:01:02]} (22... g5 $5) 23. Kg2 {[%emt 0:01:21]} f6 {[%emt 0:09:29]} 24. Rd3 {[%emt 0:00:40]} Rb8 {[%emt 0:00:58]} 25. Bc1 {[%emt 0:02:17]} Rb4 {[%emt 0:00:27]} 26. c3 {[%emt 0:04:46]} Ra4 {[%emt 0:00:32]} 27. a3 {[%emt 0:00:20]} Rc4 {[%emt 0:01:42]} 28. Be3 {[%emt 0:01:53]} Rc6 {[%emt 0:00:48]} 29. Bc1 {[%emt 0:01:42]} Rb6 {[%emt 0:00:13]} 30. Rd1 {[%emt 0:00:29]} Rb3 {[%emt 0:00:25]} 31. Kf1 {[%emt 0:00:40]} Kc6 {[%emt 0:01:37]} 32. Ke2 {[%emt 0:00:33]} a5 {[%emt 0:01:03]} 33. Rg1 {[%emt 0:00:25]} Bf8 {[%emt 0:00:14]} 34. Kd3 {[%emt 0:00:45]} a4 {[%emt 0:00:25]} 35. Rg4 {[%emt 0:00:31]} Rb8 {[%emt 0:01:14]} 36. Rh4 {[%emt 0:00:59]} h6 {[%emt 0:00:25]} 37. Rg4 {[%emt 0:00:11]} Kd7 {[%emt 0:01:28]} 38. Kc2 {[%emt 0:00:41]} Re8 {[%emt 0:00:40]} 39. Be3 {[%emt 0:00:10]} h5 {[%emt 0:04:58]} 40. Rg1 {[%emt 0:00:29]} e5 {[%emt 0:33:10]} 41. Rd1 {[%emt 0:30:58]} e4 {[%emt 0:00:34]} 42. Rg1 {[%emt 0:02:39]} exf3 {[%emt 0:00:44]} 43. Rg3 {[%emt 0:00:04]} c6 {[%emt 0:04:28]} 44. Rxf3 {[%emt 0:00:12]} Bd6 {[%emt 0:00:35]} 45. Bd2 {[%emt 0:02:43]} Re2 {[%emt 0:01:39]} 46. Kd3 {[%emt 0:00:34]} Re4 {[%emt 0:00:25]} 47. Re3 {[%emt 0:01:16]} Rh4 $15 {[%emt 0:03:57]} 48. Rf3 {[%emt 0:01:21]} Ke6 {[%emt 0:01:04]} 49. Ke2 {[%emt 0:00:13]} g5 {[%emt 0:03:58]} 50. Kf1 {[%emt 0:01:00]} g4 {[%emt 0:03:16]} 51. hxg4 {[%emt 0:00:41]} hxg4 {[%emt 0:00:10]} 52. Re3+ {[%emt 0:00:32]} Kd7 {[%emt 0:03:35]} 53. Re1 {[%emt 0:01:45]} f5 {[%emt 0:01:05]} 54. Kg2 {[%emt 0:00:47]} Rh2+ {[%emt 0:02:28]} 55. Kg1 {[%emt 0:00:32]} g3 {[%emt 0:01:13]} 56. Rf1 {[%emt 0:01:01]} f4 {[%emt 0:00:52]} 57. Bc1 {[%emt 0:00:38]} g2 {[%emt 0:00:18]} 0-1